[Event "*** Titled Tuesday 3|2 Blitz (Late)"]
[Site "Chess.com"]
[Date "2016.12.06"]
[Round "2"]
[White "Fandorine"]
[Black "Divertissement"]
[Result "0-1"]
[WhiteElo "2609"]
[BlackElo "2437"]
[TimeControl "180+2"]
[EndTime "17:22:31 PST"]
[Termination "Divertissement won on time"]

1. e4 {[%clk 0:03:02]} 1... c5 {[%clk 0:03:00.4]} 2. Nf3 {[%clk 0:03:02.6]} 2...
e6 {[%clk 0:03:00.5]} 3. d4 {[%clk 0:03:01.6]} 3... cxd4 {[%clk 0:03:02.4]} 4.
Nxd4 {[%clk 0:03:03.3]} 4... Nc6 {[%clk 0:03:03.2]} 5. Nc3 {[%clk 0:03:04.6]}
5... Qc7 {[%clk 0:03:04.3]} 6. g3 {[%clk 0:03:06]} 6... a6 {[%clk 0:03:04.5]} 7.
Bg2 {[%clk 0:03:07.2]} 7... d6 {[%clk 0:03:06.1]} 8. O-O {[%clk 0:03:08.3]} 8...
Bd7 {[%clk 0:03:06.4]} 9. Re1 {[%clk 0:03:09.9]} 9... Be7 {[%clk 0:03:07.5]} 10.
Nce2 {[%clk 0:03:01.6]} 10... h5 {[%clk 0:03:04.2]} 11. h3 {[%clk 0:03:00.8]}
11... Nf6 {[%clk 0:02:57.7]} 12. b3 {[%clk 0:03:00.3]} 12... b5 {[%clk
0:02:53.3]} 13. Bb2 {[%clk 0:03:01.1]} 13... Rc8 {[%clk 0:02:53.7]} 14. Rc1
{[%clk 0:03:02]} 14... Qa5 {[%clk 0:02:35.7]} 15. a3 {[%clk 0:02:58.2]} 15...
Ne5 {[%clk 0:02:04.4]} 16. f4 {[%clk 0:02:51.7]} 16... Nc6 {[%clk 0:01:57.4]}
17. Nxc6 {[%clk 0:02:50.7]} 17... Bxc6 {[%clk 0:01:59.3]} 18. Nd4 {[%clk
0:02:52.4]} 18... Qb6 {[%clk 0:01:52.2]} 19. Kh2 {[%clk 0:02:52]} 19... Bb7
{[%clk 0:01:27.9]} 20. Qe2 {[%clk 0:02:39.2]} 20... g6 {[%clk 0:01:16.3]} 21.
Nf3 {[%clk 0:02:21.8]} 21... Rh6 {[%clk 0:00:41.7]} 22. Ng5 {[%clk 0:02:17.1]}
22... Ng4+ {[%clk 0:00:36.8]} 23. hxg4 {[%clk 0:02:02.9]} 23... hxg4+ {[%clk
0:00:38.7]} 24. Nh3 {[%clk 0:02:04.5]} 24... gxh3 {[%clk 0:00:37.6]} 25. Bf3
{[%clk 0:02:05.9]} 25... g5 {[%clk 0:00:21.5]} 26. f5 {[%clk 0:01:41.8]} 26...
Bf6 {[%clk 0:00:16.4]} 27. Bxf6 {[%clk 0:01:29.6]} 27... Rxf6 {[%clk 0:00:18.3]}
28. g4 {[%clk 0:01:31.2]} 28... Kf8 {[%clk 0:00:11.9]} 29. Qd2 {[%clk
0:01:29.4]} 29... Ke7 {[%clk 0:00:08]} 30. Kxh3 {[%clk 0:01:21.9]} 30... Rh8+
{[%clk 0:00:08.8]} 31. Kg2 {[%clk 0:01:23]} 31... Rfh6 {[%clk 0:00:10.5]} 32.
Qxg5+ {[%clk 0:01:03.8]} 32... Kf8 {[%clk 0:00:10.3]} 33. Rh1 {[%clk 0:01:03.6]}
33... Rxh1 {[%clk 0:00:10.1]} 34. Rxh1 {[%clk 0:01:05.5]} 34... Rxh1 {[%clk
0:00:11.5]} 35. Kxh1 {[%clk 0:01:05.6]} 35... Qf2 {[%clk 0:00:13.1]} 36. Bg2
{[%clk 0:00:25.9]} 36... Bxe4 {[%clk 0:00:13.6]} 37. Bxe4 {[%clk 0:00:24.5]}
37... Qe1+ {[%clk 0:00:15]} 38. Kh2 {[%clk 0:00:26.1]} 38... Qxe4 {[%clk
0:00:16.7]} 39. Qd8+ {[%clk 0:00:14.9]} 39... Kg7 {[%clk 0:00:16.9]} 40. Qxd6
{[%clk 0:00:16.4]} 40... Qxc2+ {[%clk 0:00:17.4]} 41. Kg3 {[%clk 0:00:17.9]}
41... Qxb3+ {[%clk 0:00:18.2]} 42. Kh4 {[%clk 0:00:19.5]} 42... exf5 {[%clk
0:00:19.6]} 43. gxf5 {[%clk 0:00:17.7]} 43... Qf3 {[%clk 0:00:12.5]} 44. Qe5+
{[%clk 0:00:15.5]} 44... Kh7 {[%clk 0:00:14.1]} 45. Kg5 {[%clk 0:00:03.9]} 45...
Qg2+ {[%clk 0:00:11.5]} 46. Kh4 {[%clk 0:00:05.4]} 46... Qh1+ {[%clk 0:00:12.3]}
47. Kg5 {[%clk 0:00:04.8]} 47... Qg1+ {[%clk 0:00:12.2]} 48. Kh4 {[%clk
0:00:06.1]} 48... Qg7 {[%clk 0:00:13.5]} 49. f6 {[%clk 0:00:05.6]} 49... Qh6+
{[%clk 0:00:14.4]} 50. Kg4 {[%clk 0:00:07]} 50... Qg6+ {[%clk 0:00:16]} 51. Kf4
{[%clk 0:00:07.2]} 51... Kh6 {[%clk 0:00:17.2]} 52. Qe7 {[%clk 0:00:05]} 52...
Qg5+ {[%clk 0:00:17.6]} 53. Ke4 {[%clk 0:00:06.6]} 53... Kg6 {[%clk 0:00:18.8]}
54. Qb7 {[%clk 0:00:04.5]} 54... Qg2+ {[%clk 0:00:19.1]} 0-1

[Event "*** Titled Tuesday 3|2 Blitz (Late)"]
[Site "Chess.com"]
[Date "2016.12.06"]
[Round "2"]
[White "SenseiJulio"]
[Black "Hikaru"]
[Result "0-1"]
[WhiteElo "2521"]
[BlackElo "2910"]
[TimeControl "180+2"]
[EndTime "17:22:44 PST"]
[Termination "Hikaru won on time"]

1. d4 {[%clk 0:03:02]} 1... Nf6 {[%clk 0:02:58.7]} 2. c4 {[%clk 0:03:02.8]} 2...
g6 {[%clk 0:03:00.6]} 3. Nc3 {[%clk 0:03:03.4]} 3... Bg7 {[%clk 0:03:02.2]} 4.
e4 {[%clk 0:03:05]} 4... d6 {[%clk 0:03:03.8]} 5. h3 {[%clk 0:03:01.9]} 5... O-O
{[%clk 0:03:04.3]} 6. Be3 {[%clk 0:03:02.6]} 6... c6 {[%clk 0:03:02.7]} 7. Bd3
{[%clk 0:03:00]} 7... a6 {[%clk 0:03:02.8]} 8. Nf3 {[%clk 0:02:45.4]} 8... b5
{[%clk 0:03:03.5]} 9. O-O {[%clk 0:02:43.5]} 9... Nbd7 {[%clk 0:02:56.6]} 10.
Rc1 {[%clk 0:02:39.6]} 10... b4 {[%clk 0:02:44.1]} 11. Na4 {[%clk 0:02:31.8]}
11... a5 {[%clk 0:02:35.7]} 12. e5 {[%clk 0:02:24.8]} 12... Ne8 {[%clk
0:02:33.9]} 13. exd6 {[%clk 0:01:57]} 13... exd6 {[%clk 0:02:35.2]} 14. Qd2
{[%clk 0:01:57.4]} 14... Ba6 {[%clk 0:02:29.2]} 15. Bg5 {[%clk 0:01:53.2]} 15...
Nef6 {[%clk 0:02:28.5]} 16. Rfe1 {[%clk 0:01:50.8]} 16... c5 {[%clk 0:02:13.5]}
17. d5 {[%clk 0:01:43.7]} 17... Qc7 {[%clk 0:02:10.5]} 18. Bf4 {[%clk
0:01:18.6]} 18... Rfe8 {[%clk 0:02:07.1]} 19. g4 {[%clk 0:01:18.8]} 19... Nb6
{[%clk 0:02:06.4]} 20. Nxb6 {[%clk 0:01:17.8]} 20... Qxb6 {[%clk 0:02:08.3]} 21.
b3 {[%clk 0:01:10.5]} 21... Nd7 {[%clk 0:02:08.4]} 22. Rxe8+ {[%clk 0:01:03.8]}
22... Rxe8 {[%clk 0:02:08.6]} 23. Re1 {[%clk 0:01:05.7]} 23... Rd8 {[%clk
0:01:58.6]} 24. Bg5 {[%clk 0:00:50.2]} 24... f6 {[%clk 0:01:24.5]} 25. Bh6
{[%clk 0:00:42.2]} 25... Ne5 {[%clk 0:01:22.8]} 26. Nxe5 {[%clk 0:00:41.9]}
26... dxe5 {[%clk 0:01:19.6]} 27. Bxg7 {[%clk 0:00:43]} 27... Kxg7 {[%clk
0:01:21.5]} 28. f4 {[%clk 0:00:44.2]} 28... exf4 {[%clk 0:01:12.3]} 29. Re7+
{[%clk 0:00:44]} 29... Kf8 {[%clk 0:01:13.6]} 30. Rxh7 {[%clk 0:00:44.6]} 30...
Qd6 {[%clk 0:01:14.7]} 31. Bxg6 {[%clk 0:00:45.3]} 31... Qe5 {[%clk 0:01:14.6]}
32. Bf5 {[%clk 0:00:41.6]} 32... Kg8 {[%clk 0:01:11.8]} 33. Rh5 {[%clk
0:00:31.5]} 33... Kg7 {[%clk 0:01:11.4]} 34. Be6 {[%clk 0:00:31]} 34... Qxe6
{[%clk 0:01:09.1]} 35. Qxf4 {[%clk 0:00:27.1]} 35... Qe1+ {[%clk 0:01:08.6]} 36.
Kg2 {[%clk 0:00:28.5]} 36... Qe2+ {[%clk 0:01:09.9]} 37. Kg3 {[%clk 0:00:28.9]}
37... Qe1+ {[%clk 0:01:10.5]} 38. Kg2 {[%clk 0:00:30.2]} 38... Qe2+ {[%clk
0:01:00.7]} 39. Kg3 {[%clk 0:00:31.5]} 39... Qd3+ {[%clk 0:00:51.8]} 40. Kg2
{[%clk 0:00:32.3]} 40... Re8 {[%clk 0:00:50.5]} 41. Qh6+ {[%clk 0:00:19.9]}
41... Kf7 {[%clk 0:00:49.8]} 42. Qh7+ {[%clk 0:00:20.6]} 42... Qxh7 {[%clk
0:00:51.2]} 43. Rxh7+ {[%clk 0:00:22.2]} 43... Kg6 {[%clk 0:00:52.9]} 44. Ra7
{[%clk 0:00:21.8]} 44... Bc8 {[%clk 0:00:53.1]} 45. Kf3 {[%clk 0:00:23.1]} 45...
Rh8 {[%clk 0:00:53.4]} 46. Kg3 {[%clk 0:00:23.4]} 46... f5 {[%clk 0:00:53.9]}
47. Ra8 {[%clk 0:00:23.9]} 47... fxg4 {[%clk 0:00:54.5]} 48. hxg4 {[%clk
0:00:25.8]} 48... Re8 {[%clk 0:00:54.6]} 49. d6 {[%clk 0:00:26.6]} 49... Kg5
{[%clk 0:00:48.3]} 50. Rxa5 {[%clk 0:00:22.3]} 50... Re3+ {[%clk 0:00:49]} 51.
Kf2 {[%clk 0:00:23.4]} 51... Re5 {[%clk 0:00:50.9]} 52. Ra7 {[%clk 0:00:22.4]}
52... Bxg4 {[%clk 0:00:48.8]} 53. d7 {[%clk 0:00:21.6]} 53... Re2+ {[%clk
0:00:48.9]} 54. Kg3 {[%clk 0:00:23.3]} 54... Rd2 {[%clk 0:00:50.1]} 55. d8=Q+
{[%clk 0:00:22.2]} 55... Rxd8 {[%clk 0:00:50.7]} 56. Rg7+ {[%clk 0:00:23.9]}
56... Kh5 {[%clk 0:00:40.3]} 57. Rc7 {[%clk 0:00:24.8]} 57... Rd3+ {[%clk
0:00:38.6]} 58. Kf4 {[%clk 0:00:25.1]} 58... Rf3+ {[%clk 0:00:39.3]} 59. Ke4
{[%clk 0:00:24.6]} 59... Rf5 {[%clk 0:00:41.2]} 60. Rd7 {[%clk 0:00:19.1]} 60...
Kg5 {[%clk 0:00:37.9]} 61. Rg7+ {[%clk 0:00:20.2]} 61... Kh4 {[%clk 0:00:39.2]}
62. Rd7 {[%clk 0:00:20.1]} 62... Rf2 {[%clk 0:00:40.3]} 63. Rd5 {[%clk
0:00:19.5]} 63... Bf3+ {[%clk 0:00:40.7]} 64. Ke3 {[%clk 0:00:20.9]} 64... Bxd5
{[%clk 0:00:42.3]} 65. Kxf2 {[%clk 0:00:22.3]} 65... Bc6 {[%clk 0:00:41.9]} 66.
Ke3 {[%clk 0:00:23.7]} 66... Kg4 {[%clk 0:00:43.4]} 67. Kd3 {[%clk 0:00:23]}
67... Kf4 {[%clk 0:00:44.8]} 0-1

[Event "*** Titled Tuesday 3|2 Blitz (Late)"]
[Site "Chess.com"]
[Date "2016.12.06"]
[Round "2"]
[White "Alexander_Moskalenko"]
[Black "GM_Barcenilla"]
[Result "1/2-1/2"]
[WhiteElo "2605"]
[BlackElo "2655"]
[TimeControl "180+2"]
[EndTime "17:22:59 PST"]
[Termination "Game drawn by repetition"]

1. c4 {[%clk 0:02:52.6]} 1... c5 {[%clk 0:02:58.2]} 2. g3 {[%clk 0:02:53.7]}
2... g6 {[%clk 0:02:59]} 3. Bg2 {[%clk 0:02:54.5]} 3... Bg7 {[%clk 0:03:00.9]}
4. Nc3 {[%clk 0:02:55.9]} 4... Nc6 {[%clk 0:03:01.6]} 5. d3 {[%clk 0:02:56.2]}
5... e5 {[%clk 0:03:01.8]} 6. Nf3 {[%clk 0:02:55.3]} 6... Nge7 {[%clk
0:03:02.2]} 7. O-O {[%clk 0:02:46.5]} 7... d6 {[%clk 0:03:02.8]} 8. a3 {[%clk
0:02:37.6]} 8... h5 {[%clk 0:03:01]} 9. Rb1 {[%clk 0:02:31.5]} 9... h4 {[%clk
0:02:56.5]} 10. b4 {[%clk 0:02:26.5]} 10... hxg3 {[%clk 0:02:56.4]} 11. hxg3
{[%clk 0:02:28.1]} 11... Bh3 {[%clk 0:02:50.1]} 12. Bxh3 {[%clk 0:02:28.3]}
12... Rxh3 {[%clk 0:02:50.3]} 13. Kg2 {[%clk 0:02:30.2]} 13... Qd7 {[%clk
0:02:49.4]} 14. bxc5 {[%clk 0:02:30.6]} 14... O-O-O {[%clk 0:02:48.1]} 15. cxd6
{[%clk 0:02:21.8]} 15... Nf5 {[%clk 0:02:37]} 16. Ne4 {[%clk 0:02:20.4]} 16...
Rdh8 {[%clk 0:02:32.3]} 17. Bb2 {[%clk 0:02:10.8]} 17... Nxd6 {[%clk 0:02:18.9]}
18. Nxd6+ {[%clk 0:02:11.9]} 18... Qxd6 {[%clk 0:02:19.8]} 19. Qb3 {[%clk
0:02:13.6]} 19... Qd7 {[%clk 0:02:04.3]} 20. Bc3 {[%clk 0:01:55.4]} 20... g5
{[%clk 0:01:34.8]} 21. Rg1 {[%clk 0:01:43.1]} 21... g4 {[%clk 0:01:28.8]} 22.
Nd2 {[%clk 0:01:44.5]} 22... Bf8 {[%clk 0:01:24.2]} 23. Kf1 {[%clk 0:01:41.8]}
23... f5 {[%clk 0:01:22.7]} 24. Qb5 {[%clk 0:01:43]} 24... a6 {[%clk 0:01:10.1]}
25. Qd5 {[%clk 0:01:43.8]} 25... Bxa3 {[%clk 0:00:58]} 26. Qxd7+ {[%clk
0:01:41.5]} 26... Kxd7 {[%clk 0:00:59.2]} 27. Rxb7+ {[%clk 0:01:43.3]} 27... Kd6
{[%clk 0:01:00.6]} 28. e3 {[%clk 0:01:35]} 28... a5 {[%clk 0:00:58.6]} 29. Ke2
{[%clk 0:01:36.1]} 29... Bb4 {[%clk 0:00:56.4]} 30. Bxb4+ {[%clk 0:01:35.4]}
30... axb4 {[%clk 0:00:58.3]} 31. Ra1 {[%clk 0:01:30.8]} 31... R3h7 {[%clk
0:00:56.4]} 32. Rxh7 {[%clk 0:01:28.7]} 32... Rxh7 {[%clk 0:00:57]} 33. Ra6
{[%clk 0:01:28.3]} 33... Kc7 {[%clk 0:00:53.5]} 34. Ra1 {[%clk 0:01:20]} 34...
Kb6 {[%clk 0:00:50.6]} 35. Nb3 {[%clk 0:01:20.9]} 35... Rh2 {[%clk 0:00:38.8]}
36. d4 {[%clk 0:01:19.3]} 36... exd4 {[%clk 0:00:36.6]} 37. exd4 {[%clk
0:01:21.2]} 37... f4 {[%clk 0:00:35.6]} 38. gxf4 {[%clk 0:00:47.5]} 38... Rh3
{[%clk 0:00:33.6]} 39. d5 {[%clk 0:00:32.6]} 39... Rxb3 {[%clk 0:00:26.5]} 40.
dxc6 {[%clk 0:00:33.6]} 40... Rc3 {[%clk 0:00:27.9]} 41. Rg1 {[%clk 0:00:11]}
41... b3 {[%clk 0:00:25]} 42. Rb1 {[%clk 0:00:11.6]} 42... Kxc6 {[%clk
0:00:23.4]} 43. Kd2 {[%clk 0:00:12.8]} 43... Rf3 {[%clk 0:00:22]} 44. Rg1 {[%clk
0:00:08.3]} 44... Rxf2+ {[%clk 0:00:17.5]} 45. Kc3 {[%clk 0:00:09.9]} 45... Rf3+
{[%clk 0:00:14.1]} 46. Kb2 {[%clk 0:00:10]} 46... g3 {[%clk 0:00:11.6]} 47. f5
{[%clk 0:00:11.3]} 47... Kc5 {[%clk 0:00:10.2]} 48. f6 {[%clk 0:00:12.3]} 48...
Kxc4 {[%clk 0:00:11.7]} 49. f7 {[%clk 0:00:13.2]} 49... Rf2+ {[%clk 0:00:12.9]}
50. Kb1 {[%clk 0:00:14.7]} 50... Rf3 {[%clk 0:00:02.2]} 51. Rxg3 {[%clk
0:00:11.7]} 51... Rxf7 {[%clk 0:00:03.7]} 52. Rg2 {[%clk 0:00:11.4]} 52... Kc3
{[%clk 0:00:04.3]} 53. Rg3+ {[%clk 0:00:12.4]} 53... Kb4 {[%clk 0:00:06]} 54.
Rg8 {[%clk 0:00:13]} 54... Rf1+ {[%clk 0:00:06.7]} 55. Kb2 {[%clk 0:00:13.9]}
55... Rf2+ {[%clk 0:00:08.6]} 56. Kb1 {[%clk 0:00:15.5]} 56... Rf1+ {[%clk
0:00:05.3]} 57. Kb2 {[%clk 0:00:15.9]} 57... Rf2+ {[%clk 0:00:07.2]} 58. Kb1
{[%clk 0:00:17]} 58... Rf5 {[%clk 0:00:07.7]} 59. Kb2 {[%clk 0:00:16.9]} 59...
Rf2+ {[%clk 0:00:08.4]} 60. Kb1 {[%clk 0:00:16.4]} 60... Kc3 {[%clk 0:00:10.3]}
61. Rc8+ {[%clk 0:00:16.3]} 61... Kb4 {[%clk 0:00:11.7]} 62. Rb8+ {[%clk
0:00:17.3]} 62... Ka3 {[%clk 0:00:13.1]} 63. Ra8+ {[%clk 0:00:18.3]} 63... Kb4
{[%clk 0:00:15]} 64. Rb8+ {[%clk 0:00:19.9]} 64... Kc3 {[%clk 0:00:16.9]} 65.
Rc8+ {[%clk 0:00:21.2]} 65... Kd4 {[%clk 0:00:17.5]} 66. Rd8+ {[%clk 0:00:21.8]}
66... Kc4 {[%clk 0:00:18.8]} 67. Rc8+ {[%clk 0:00:23.2]} 67... Kb4 {[%clk
0:00:20.1]} 68. Rb8+ {[%clk 0:00:24.8]} 68... Kc3 {[%clk 0:00:20.8]} 69. Rc8+
{[%clk 0:00:26.2]} 69... Kd3 {[%clk 0:00:22.2]} 70. Rb8 {[%clk 0:00:26.9]} 70...
Kc4 {[%clk 0:00:19.8]} 71. Rc8+ {[%clk 0:00:28]} 71... Kb4 {[%clk 0:00:18.8]}
1/2-1/2

[Event "*** Titled Tuesday 3|2 Blitz (Late)"]
[Site "Chess.com"]
[Date "2016.12.06"]
[Round "3"]
[White "calemcc"]
[Black "FLchessplayer"]
[Result "1-0"]
[WhiteElo "2108"]
[BlackElo "2019"]
[TimeControl "180+2"]
[EndTime "17:28:43 PST"]
[Termination "calemcc won by resignation"]

1. d4 {[%clk 0:03:02]} 1... g6 {[%clk 0:02:55.9]} 2. c4 {[%clk 0:03:03.9]} 2...
Bg7 {[%clk 0:02:56.7]} 3. e4 {[%clk 0:03:05.5]} 3... d6 {[%clk 0:02:58.1]} 4.
Nc3 {[%clk 0:03:06.7]} 4... Nc6 {[%clk 0:02:59.1]} 5. Be3 {[%clk 0:03:07]} 5...
e5 {[%clk 0:03:00.2]} 6. Nge2 {[%clk 0:03:07.7]} 6... Nf6 {[%clk 0:02:58.1]} 7.
f3 {[%clk 0:03:08.9]} 7... O-O {[%clk 0:02:56.8]} 8. Qd2 {[%clk 0:03:10.3]} 8...
Nh5 {[%clk 0:02:56.9]} 9. O-O-O {[%clk 0:03:08.5]} 9... f5 {[%clk 0:02:56.2]}
10. d5 {[%clk 0:03:05.5]} 10... f4 {[%clk 0:02:52.4]} 11. Bf2 {[%clk 0:03:06]}
11... Na5 {[%clk 0:02:53.4]} 12. c5 {[%clk 0:03:06.7]} 12... b6 {[%clk
0:02:50.8]} 13. cxd6 {[%clk 0:02:59.5]} 13... cxd6 {[%clk 0:02:50.4]} 14. Kb1
{[%clk 0:03:00.1]} 14... Nc4 {[%clk 0:02:49]} 15. Qd3 {[%clk 0:02:58.7]} 15...
Ba6 {[%clk 0:02:42.4]} 16. Nc1 {[%clk 0:02:56.2]} 16... Na3+ {[%clk 0:02:42.5]}
17. bxa3 {[%clk 0:02:56.4]} 17... Bxd3+ {[%clk 0:02:43.3]} 18. Nxd3 {[%clk
0:02:56.2]} 18... a6 {[%clk 0:02:44.6]} 19. Nb4 {[%clk 0:02:56.1]} 19... b5
{[%clk 0:02:44]} 20. Nc6 {[%clk 0:02:56.9]} 20... Qd7 {[%clk 0:02:45.2]} 21. Rc1
{[%clk 0:02:39.4]} 21... Rfc8 {[%clk 0:02:45.2]} 22. Nd1 {[%clk 0:02:40]} 22...
Nf6 {[%clk 0:02:43.5]} 23. Nb2 {[%clk 0:02:38.9]} 23... g5 {[%clk 0:02:42.6]}
24. a4 {[%clk 0:02:31.8]} 24... bxa4 {[%clk 0:02:38.3]} 25. Nxa4 {[%clk
0:02:33.7]} 25... h5 {[%clk 0:02:35.9]} 26. Ka1 {[%clk 0:02:33]} 26... Rcb8
{[%clk 0:02:36.7]} 27. Nb6 {[%clk 0:02:33.4]} 27... Rxb6 {[%clk 0:02:36.6]} 28.
Bxb6 {[%clk 0:02:35.3]} 28... Qb7 {[%clk 0:02:34.5]} 29. Rb1 {[%clk 0:02:35.6]}
29... Rc8 {[%clk 0:02:34.1]} 30. Bc4 {[%clk 0:02:28.6]} 30... Kh7 {[%clk
0:02:33.5]} 31. Rhc1 {[%clk 0:02:26.1]} 31... Rxc6 {[%clk 0:02:26.4]} 32. dxc6
{[%clk 0:02:26.6]} 32... Qxc6 {[%clk 0:02:27.4]} 33. Bg8+ {[%clk 0:02:27.6]}
33... Nxg8 {[%clk 0:02:26.1]} 34. Rxc6 {[%clk 0:02:29.5]} 1-0

[Event "*** Titled Tuesday 3|2 Blitz (Late)"]
[Site "Chess.com"]
[Date "2016.12.06"]
[Round "3"]
[White "Divertissement"]
[Black "HarutyunianTigranK"]
[Result "0-1"]
[WhiteElo "2434"]
[BlackElo "2692"]
[TimeControl "180+2"]
[EndTime "17:31:18 PST"]
[Termination "HarutyunianTigranK won by resignation"]

1. d4 {[%clk 0:03:02]} 1... d5 {[%clk 0:03:00.6]} 2. Bf4 {[%clk 0:03:03.3]} 2...
Nf6 {[%clk 0:02:58.8]} 3. Nf3 {[%clk 0:03:04.1]} 3... Bf5 {[%clk 0:02:57.3]} 4.
e3 {[%clk 0:03:04.7]} 4... e6 {[%clk 0:02:57.9]} 5. Be2 {[%clk 0:03:01.3]} 5...
Bd6 {[%clk 0:02:58.1]} 6. Bg3 {[%clk 0:03:01.1]} 6... O-O {[%clk 0:02:58]} 7.
Nbd2 {[%clk 0:02:59.2]} 7... c5 {[%clk 0:02:58.8]} 8. c3 {[%clk 0:03:00.2]} 8...
Nc6 {[%clk 0:02:58.7]} 9. Nh4 {[%clk 0:03:00.6]} 9... Be4 {[%clk 0:02:52.2]} 10.
Nxe4 {[%clk 0:02:44.8]} 10... Nxe4 {[%clk 0:02:51.6]} 11. Nf3 {[%clk 0:02:43.9]}
11... cxd4 {[%clk 0:02:46.7]} 12. exd4 {[%clk 0:02:44]} 12... Rb8 {[%clk
0:02:47]} 13. a4 {[%clk 0:02:44.2]} 13... a6 {[%clk 0:02:45.5]} 14. Nd2 {[%clk
0:02:35]} 14... Nxg3 {[%clk 0:02:35.7]} 15. hxg3 {[%clk 0:02:35.7]} 15... g6
{[%clk 0:02:36.3]} 16. Nf3 {[%clk 0:02:30.6]} 16... Qf6 {[%clk 0:02:15.2]} 17.
Qd2 {[%clk 0:02:27.5]} 17... Be7 {[%clk 0:02:08.9]} 18. Qh6 {[%clk 0:02:27.4]}
18... Qg7 {[%clk 0:02:09.7]} 19. Qxg7+ {[%clk 0:02:27.4]} 19... Kxg7 {[%clk
0:02:10.6]} 20. a5 {[%clk 0:02:24.2]} 20... h5 {[%clk 0:02:08.6]} 21. Kd2 {[%clk
0:02:23]} 21... Rbc8 {[%clk 0:02:06.6]} 22. b4 {[%clk 0:02:20.9]} 22... Rc7
{[%clk 0:02:01.7]} 23. Ne1 {[%clk 0:02:16.5]} 23... e5 {[%clk 0:01:54.6]} 24.
dxe5 {[%clk 0:02:09.6]} 24... Nxe5 {[%clk 0:01:55.5]} 25. Nf3 {[%clk 0:01:57.9]}
25... Nc4+ {[%clk 0:01:43]} 26. Bxc4 {[%clk 0:01:58.5]} 26... Rxc4 {[%clk
0:01:44.4]} 27. Rac1 {[%clk 0:00:47.6]} 27... Rfc8 {[%clk 0:01:42.7]} 28. Rc2
{[%clk 0:00:43.7]} 28... Bxb4 {[%clk 0:01:40.8]} 29. Rb1 {[%clk 0:00:38]} 29...
Bxc3+ {[%clk 0:01:39]} 30. Kd3 {[%clk 0:00:37.8]} 30... Bxa5 {[%clk 0:01:39.9]}
31. Rxc4 {[%clk 0:00:35.9]} 31... dxc4+ {[%clk 0:01:40.5]} 0-1

[Event "*** Titled Tuesday 3|2 Blitz (Late)"]
[Site "Chess.com"]
[Date "2016.12.06"]
[Round "3"]
[White "1e41-0"]
[Black "Bigfish1995"]
[Result "0-1"]
[WhiteElo "2178"]
[BlackElo "2706"]
[TimeControl "180+2"]
[EndTime "17:32:18 PST"]
[Termination "Bigfish1995 won by resignation"]

1. e4 {[%clk 0:03:02]} 1... e5 {[%clk 0:02:59.2]} 2. Nf3 {[%clk 0:03:03]} 2...
Nc6 {[%clk 0:02:59.8]} 3. g3 {[%clk 0:03:04.3]} 3... d5 {[%clk 0:02:59.8]} 4.
exd5 {[%clk 0:03:05.1]} 4... Qxd5 {[%clk 0:02:57.4]} 5. Bg2 {[%clk 0:02:57.9]}
5... e4 {[%clk 0:02:31.9]} 6. Nc3 {[%clk 0:02:54.9]} 6... Qe6 {[%clk 0:02:32.8]}
7. Ng5 {[%clk 0:02:53.1]} 7... Qe7 {[%clk 0:02:34]} 8. Ngxe4 {[%clk 0:02:49.7]}
8... f5 {[%clk 0:02:34.8]} 9. Nd5 {[%clk 0:02:50.2]} 9... Qe5 {[%clk 0:02:34.8]}
10. d4 {[%clk 0:02:48.4]} 10... Qxd5 {[%clk 0:02:29.8]} 11. Nf6+ {[%clk
0:02:44.3]} 11... Nxf6 {[%clk 0:02:30.4]} 12. Bxd5 {[%clk 0:02:45.1]} 12... Nxd5
{[%clk 0:02:31.4]} 13. c4 {[%clk 0:02:45.2]} 13... Nf6 {[%clk 0:02:22.3]} 14. d5
{[%clk 0:02:39.6]} 14... Nd8 {[%clk 0:02:18.1]} 15. Bf4 {[%clk 0:02:39.6]} 15...
Bd6 {[%clk 0:02:18.4]} 16. Qe2+ {[%clk 0:02:38.7]} 16... Kf7 {[%clk 0:02:19]}
17. Bxd6 {[%clk 0:02:37.3]} 17... cxd6 {[%clk 0:02:20.3]} 18. O-O-O {[%clk
0:02:37.9]} 18... Re8 {[%clk 0:02:20.9]} 19. Qc2 {[%clk 0:02:38.1]} 19... Bd7
{[%clk 0:02:05.8]} 20. Rhe1 {[%clk 0:02:38.1]} 20... Rc8 {[%clk 0:02:06.4]} 21.
Rxe8 {[%clk 0:02:35.2]} 21... Bxe8 {[%clk 0:02:07.4]} 22. Qxf5 {[%clk
0:02:31.7]} 22... Rxc4+ {[%clk 0:02:07.6]} 23. Kb1 {[%clk 0:02:32.6]} 23... Kf8
{[%clk 0:02:05.7]} 24. b3 {[%clk 0:02:19.9]} 24... Bg6 {[%clk 0:02:04.6]} 25.
Qxg6 {[%clk 0:02:18.3]} 25... hxg6 {[%clk 0:02:06.1]} 26. bxc4 {[%clk
0:02:19.7]} 26... b6 {[%clk 0:02:07.1]} 27. Kb2 {[%clk 0:02:19.1]} 27... Nb7
{[%clk 0:02:06.1]} 28. f3 {[%clk 0:02:15.7]} 28... Nd7 {[%clk 0:02:04.5]} 29.
Kc3 {[%clk 0:02:13.9]} 29... Nbc5 {[%clk 0:02:02.1]} 30. Re1 {[%clk 0:02:08.9]}
30... g5 {[%clk 0:02:02.6]} 31. Rf1 {[%clk 0:01:47.8]} 31... Kf7 {[%clk
0:02:02]} 32. f4 {[%clk 0:01:46.6]} 32... g4 {[%clk 0:02:03.1]} 33. Re1 {[%clk
0:01:47.2]} 33... Nf6 {[%clk 0:02:03]} 34. Kd4 {[%clk 0:01:48.4]} 34... g6
{[%clk 0:02:02.7]} 35. Rb1 {[%clk 0:01:33.6]} 35... Ng8 {[%clk 0:02:00.6]} 36.
a4 {[%clk 0:01:34.5]} 36... Ne7 {[%clk 0:01:59.5]} 37. a5 {[%clk 0:01:33.4]}
37... bxa5 {[%clk 0:01:57.4]} 38. Rb5 {[%clk 0:01:31.4]} 38... a4 {[%clk
0:01:56.3]} 39. Kc3 {[%clk 0:01:29.7]} 39... Nf5 {[%clk 0:01:52.8]} 40. Ra5
{[%clk 0:01:29.8]} 40... a6 {[%clk 0:01:53.4]} 41. Kb4 {[%clk 0:01:21.1]} 41...
Nd4 {[%clk 0:01:51.1]} 42. Rxa4 {[%clk 0:01:11.8]} 42... Nxa4 {[%clk 0:01:51.3]}
43. Kxa4 {[%clk 0:01:13.7]} 43... Nf3 {[%clk 0:01:51.4]} 44. Ka5 {[%clk
0:01:15.6]} 44... Nxh2 {[%clk 0:01:51.8]} 45. Kxa6 {[%clk 0:01:17.2]} 45... Nf1
{[%clk 0:01:52.7]} 46. c5 {[%clk 0:01:03.8]} 46... dxc5 {[%clk 0:01:51.9]} 47.
Kb5 {[%clk 0:01:05]} 47... Nxg3 {[%clk 0:01:49.9]} 48. d6 {[%clk 0:00:59.5]}
48... Ke8 {[%clk 0:01:49.4]} 49. Kxc5 {[%clk 0:00:58.8]} 49... Nf5 {[%clk
0:01:50.4]} 50. Kd5 {[%clk 0:00:57.9]} 50... g3 {[%clk 0:01:49.7]} 51. Ke6
{[%clk 0:00:59.6]} 51... g2 {[%clk 0:01:50.9]} 52. d7+ {[%clk 0:01:01.3]} 52...
Kd8 {[%clk 0:01:52]} 0-1